bitfinex/quotes_ETHUSD_20260313
["timestamp","ask_amount","ask_price","bid_price","bid_amount"]
[1773398234497,0.45779056,2131.5,2129.9,1.85139756]
[1773398234704,1.90811936,2130.9,2129.8,0.20401754]
[1773398234862,0.39225456,2130.8,2129.8,0.20401754]
[1773398235066,0.41636172,2131.0,2129.8,1.90645829]
[1773398235484,0.065536,2131.4,2129.8,1.90645829]
[1773398235687,1.56550105,2131.3,2130.0,1.70244075]
[1773398235962,0.39250805,2131.2,2130.0,1.70244075]
[1773398236162,1.172993,2131.3,2130.0,1.70244075]
[1773398236366,0.39280405,2131.2,2130.0,1.70244075]
[1773398236588,1.172993,2131.3,2130.0,1.70244075]
[1773398236789,0.3927332,2131.2,2130.0,1.70244075]
[1773398236995,1.172993,2131.3,2129.8,0.20401754]
[1773398237195,0.3927332,2131.2,2129.8,0.20401754]
[1773398237493,0.3927332,2131.1,2129.8,0.20401754]
[1773398237793,1.17321319,2130.9,2129.8,0.20401754]
[1773398237981,1.17321319,2130.9,2129.8,1.90645829]
[1773398238294,1.17321319,2130.9,2129.9,1.70244075]
[1773398238879,1.172993,2131.3,2129.9,1.70244075]
[1773398239077,0.3930348,2131.2,2129.9,1.70244075]
[1773398239291,1.172993,2131.3,2129.9,1.70244075]
[1773398239590,1.17310309,2131.1,2130.0,1.17370892]
[1773398239780,1.17310309,2131.1,2130.1,1.70244075]
[1773398240500,4.69150045,2131.6,2130.1,1.70244075]
[1773398240795,0.39317214,2131.5,2130.1,1.70244075]
[1773398240997,0.39317214,2131.4,2130.1,1.70244075]
[1773398241195,4.69150045,2131.6,2130.1,1.70244075]
[1773398241774,1.17293797,2131.4,2130.3,1.70244075]
[1773398241976,1.90811936,2131.1,2129.8,0.20401754]
[1773398242199,0.09418326,2130.7,2129.4,0.18603233]
[1773398242391,0.09418326,2130.5,2129.4,0.18603233]
[1773398242592,0.06859106,2130.3,2129.4,0.18603233]
[1773398243300,0.06859106,2130.4,2129.4,1.0560371]
[1773398243679,1.17354363,2130.3,2129.4,2.23004549]
[1773398243873,4.76276558,2130.4,2129.4,2.23004549]
[1773398243874,1.1735123,2130.4,2129.5,0.87000477]
[1773398244509,0.07396615,2130.3,2129.5,0.87000477]
[1773398244803,0.07396615,2130.3,2129.4,0.18603233]
[1773398244993,0.07396615,2130.3,2129.4,1.36007172]
[1773398245307,0.07396615,2130.3,2129.4,1.36006516]
[1773398246181,1.17359872,2130.2,2129.4,2.23006993]
[1773398246807,1.17359872,2130.2,2129.4,1.0560371]
[1773398247298,1.19797613,2130.2,2129.4,1.0560371]
[1773398247606,0.01912523,2130.1,2129.4,0.18603233]
[1773398248123,0.01912523,2130.1,2129.4,2.23007279]
[1773398248310,4.69438595,2130.3,2129.6,0.87000477]
[1773398248686,1.17354363,2130.3,2129.6,0.87000477]
[1773398249409,1.18745415,2130.3,2129.6,0.87000477]
[1773398249908,0.01391052,2130.3,2129.6,0.87000477]
[1773398250109,1.38726465,2130.9,2129.6,0.87000477]
[1773398250110,1.17350056,2130.4,2129.6,0.87000477]
[1773398250314,1.17350056,2130.4,2129.7,2.04387902]
[1773398250509,0.00873292,2130.5,2129.8,0.87000477]
[1773398250807,1.1768603,2130.8,2129.8,0.87000477]
[1773398251007,0.39674644,2130.7,2129.8,0.87000477]
[1773398251310,1.1768603,2130.8,2129.8,0.87000477]
[1773398251611,0.39697829,2130.7,2129.8,0.87000477]
[1773398251928,1.1768603,2130.8,2129.8,0.87000477]
[1773398252129,0.39697829,2130.7,2129.8,0.87000477]
[1773398252321,1.17343346,2130.5,2129.8,2.04377947]
[1773398252635,1.17343346,2130.5,2129.9,0.87000477]
[1773398253131,1.17326825,2130.8,2129.9,0.87000477]
[1773398253308,0.39717584,2130.7,2129.9,0.87000477]
[1773398253637,1.17326825,2130.8,2129.9,0.87000477]
[1773398253807,0.39739707,2130.7,2129.9,0.87000477]
[1773398254008,1.17326825,2130.8,2129.9,0.87000477]
[1773398254230,0.39739707,2130.7,2129.9,0.87000477]
[1773398254537,1.17343346,2130.5,2129.9,0.87000477]
[1773398255232,1.17343346,2130.5,2129.6,0.87000477]
[1773398255649,0.40008869,2130.4,2129.6,0.87000477]
[1773398255830,0.40008869,2130.3,2129.6,0.87000477]
[1773398256031,1.17343346,2130.5,2129.6,0.87000477]
[1773398256332,0.40008869,2130.4,2129.6,0.87000477]
[1773398256519,1.17359872,2130.2,2129.6,0.87000477]
[1773398256929,1.17359872,2130.2,2129.8,0.001]
[1773398258539,1.17326825,2130.8,2129.8,0.001]
[1773398258712,3.20129211,2130.7,2129.8,0.001]
[1773398258913,0.40053247,2130.6,2129.8,0.001]
[1773398259116,0.40053247,2130.5,2129.8,0.001]
[1773398259313,0.40053247,2130.4,2129.8,0.001]
[1773398259515,5.34453247,2130.3,2129.5,0.1870236]
[1773398259842,8.14529211,2130.2,2129.5,0.1870236]
[1773398260015,10.05341147,2130.1,2128.9,0.87000477]
[1773398260220,2.57583935,2129.9,2128.9,0.87000477]
[1773398260441,3.20129211,2129.8,2128.9,0.87000477]
[1773398260742,1.57440672,2129.7,2128.6,2.04444662]
[1773398260942,0.40053247,2129.6,2128.6,2.04444662]
[1773398261141,0.40053247,2129.5,2128.7,0.87000477]
[1773398261442,0.40053247,2129.4,2128.7,0.87000477]
[1773398261745,1.17387425,2129.7,2128.7,0.87000477]
[1773398261942,0.40294489,2129.6,2128.7,0.87000477]
[1773398262135,0.40294489,2129.5,2128.7,0.87000477]
[1773398262335,0.40294489,2129.4,2128.7,0.87000477]
[1773398262536,1.17387425,2129.7,2128.7,0.87000477]
[1773398262738,1.1739845,2129.5,2128.8,0.87000477]
[1773398262937,0.40275203,2129.4,2128.8,0.87000477]
[1773398263133,1.1739845,2129.5,2128.8,0.87000477]
[1773398263350,0.40275203,2129.4,2128.8,0.87000477]
[1773398263652,1.17381913,2129.8,2128.8,0.87000477]
[1773398263832,0.40268118,2129.7,2128.8,0.87000477]
[1773398264027,0.40268118,2129.6,2128.8,0.87000477]
[1773398264238,1.17381913,2129.8,2128.8,0.87000477]
[1773398264239,0.40268118,2129.5,2128.8,0.87000477]
[1773398264536,7.27105167,2129.9,2128.8,0.87000477]
[1773398264537,2.57583935,2129.9,2128.8,0.87000477]
[1773398264736,0.065536,2130.4,2129.0,0.85122037]
[1773398264737,1.57657895,2129.8,2129.0,0.85122037]
[1773398265063,0.40275474,2129.7,2129.0,0.85122037]
[1773398265226,0.40275474,2129.6,2129.0,0.85122037]
[1773398265420,1.17382421,2129.8,2129.0,0.85122037]
[1773398265624,0.40267805,2129.7,2128.8,2.02554683]
[1773398265852,0.40267805,2129.6,2128.8,2.02554683]
[1773398266026,0.40267805,2129.5,2128.8,2.02554683]
[1773398266222,1.17382421,2129.8,2128.8,2.02554683]
[1773398266443,0.40268318,2129.7,2128.9,0.85122037]
[1773398266626,1.17382421,2129.8,2128.9,0.85122037]
[1773398266828,1.57652466,2129.7,2129.1,0.85122037]
[1773398267038,1.17388327,2129.7,2129.1,0.85122037]
[1773398267354,0.40264139,2129.6,2129.1,0.85122037]
[1773398267559,1.17388327,2129.7,2129.1,0.85122037]
[1773398267760,0.40260794,2129.6,2129.1,0.85122037]
[1773398268071,0.40260794,2129.5,2128.6,0.85122037]
[1773398268255,0.40260794,2129.4,2128.6,0.85122037]
[1773398268456,0.40260794,2129.3,2128.6,0.85122037]
[1773398268774,1.17388327,2129.7,2128.6,0.85122037]
[1773398268929,0.40247185,2129.6,2128.8,0.85122037]
[1773398269130,0.40247185,2129.5,2128.8,0.85122037]
[1773398269438,0.40247185,2129.4,2128.8,0.85122037]
[1773398269754,2.79646952,2129.7,2128.8,0.85122037]
[1773398270049,0.40247017,2129.6,2128.8,0.85122037]
[1773398270229,0.40247017,2129.5,2128.8,0.85122037]
[1773398270428,0.40247017,2129.4,2128.8,0.85122037]
[1773398270667,2.79646952,2129.7,2128.8,0.85122037]
[1773398270839,0.40252286,2129.6,2128.8,0.85122037]
[1773398271039,1.17403963,2129.4,2128.9,0.85122037]
[1773398271651,3.85561961,2129.9,2128.9,0.85122037]
[1773398271837,0.40278204,2129.8,2128.9,0.85122037]
[1773398272038,3.85561961,2129.9,2128.9,0.85122037]
[1773398272039,0.40278204,2129.7,2128.9,0.85122037]
[1773398272248,0.40276496,2129.6,2129.3,0.85222037]
[1773398272446,0.002,2129.5,2129.3,0.85222037]
[1773398272642,1.17359872,2130.2,2129.4,0.85022037]
[1773398272846,3.20097058,2130.1,2129.4,0.85022037]
[1773398273043,1.17376402,2129.9,2129.4,0.85022037]
[1773398273238,0.40276496,2129.8,2129.4,0.85022037]
[1773398273444,0.40276496,2129.7,2129.4,0.85022037]
[1773398273643,0.002,2129.7,2129.3,0.001]
[1773398274046,0.002,2129.7,2129.3,1.17506306]
[1773398274260,0.002,2129.7,2129.4,0.85022037]
[1773398275133,0.002,2129.7,2129.5,2.02420487]
[1773398276338,2.79768863,2130.5,2129.6,0.85022037]
[1773398276663,2.79768863,2130.5,2129.3,0.85122037]
[1773398276664,0.40790503,2130.4,2129.3,0.85122037]
[1773398276847,0.40790503,2130.3,2129.3,0.85122037]
[1773398277062,2.79768863,2130.4,2129.3,0.85122037]
[1773398277063,0.40790503,2130.2,2129.3,0.85122037]
[1773398277367,1.17370892,2130.0,2129.3,0.85122037]
[1773398277568,5.7518828,2129.9,2129.3,0.001]
[1773398277868,0.40790503,2129.8,2129.3,0.001]
[1773398278238,0.40790503,2129.8,2129.0,0.001]
[1773398278438,0.40790503,2129.8,2128.8,0.001]
[1773398278439,7.18125439,2129.6,2128.8,0.001]
[1773398278634,3.20649395,2129.5,2128.8,0.001]
[1773398278834,0.40790503,2129.4,2128.8,0.001]
[1773398279066,0.40790503,2129.3,2128.8,0.001]
[1773398279370,1.17420506,2129.1,2128.8,0.001]
[1773398280268,2.44558823,2130.3,2129.1,0.78898026]
[1773398280566,0.20833384,2130.1,2129.1,0.78898026]
[1773398280863,0.2041809,2129.8,2128.8,0.78998026]
[1773398281063,0.2041809,2129.8,2128.8,0.001]
[1773398281064,0.2041809,2129.6,2128.8,0.001]
[1773398281253,0.4077777,2129.7,2128.8,0.001]
[1773398281254,0.4077777,2129.5,2128.8,0.001]
[1773398281461,0.4077777,2129.5,2128.9,0.78898026]
[1773398281462,1.17409477,2129.3,2128.9,0.78898026]
[1773398281989,1.17408399,2129.4,2128.9,0.78898026]
[1773398282170,0.40778662,2129.3,2128.9,0.78898026]
[1773398282488,1.17408399,2129.4,2128.9,0.78898026]
[1773398282656,1.17408399,2129.4,2128.8,0.001]
[1773398282657,0.4078746,2129.3,2128.8,0.001]
[1773398282861,0.4078746,2129.2,2128.8,0.001]
[1773398283062,0.4078746,2129.1,2128.8,0.001]
[1773398283275,0.4078746,2129.0,2128.8,0.001]
[1773398283480,3.00481419,2129.3,2128.8,0.001]
[1773398283481,0.4078746,2128.9,2128.8,0.001]
[1773398283695,1.17420506,2129.1,2128.8,0.001]
[1773398283871,0.4078746,2129.0,2128.8,0.001]
[1773398284674,0.4078746,2128.9,2128.4,0.001]
[1773398284886,0.60560468,2128.8,2128.1,0.001]
[1773398285091,0.4078746,2128.7,2128.1,0.001]
[1773398285268,0.4078746,2128.6,2128.1,0.001]
[1773398285479,0.19773008,2128.8,2128.1,0.001]
[1773398285480,0.4078746,2128.5,2128.1,0.001]
[1773398285786,1.17464643,2128.3,2128.1,0.001]
[1773398286159,1.17464643,2128.3,2127.7,0.78898026]
[1773398286862,1.17464643,2128.3,2127.5,0.12943531]
[1773398286863,0.4078324,2128.2,2127.5,0.12943531]
[1773398287066,1.15383387,2128.1,2127.2,0.78898026]
[1773398287271,0.4078324,2128.0,2127.2,0.78898026]
[1773398287489,0.4078324,2127.9,2127.2,0.78898026]
[1773398287660,1.17497767,2127.7,2127.1,0.001]
[1773398287861,0.4078324,2127.6,2127.1,0.001]
[1773398288063,1.92097914,2127.7,2127.1,0.001]
[1773398288289,1.17497767,2127.7,2127.1,0.001]
[1773398289000,1.17497767,2127.7,2126.9,0.001]
[1773398289001,0.74600147,2127.5,2126.9,0.001]
[1773398289301,1.92097914,2127.7,2126.9,0.001]
[1773398289464,0.40896118,2127.6,2126.9,1.17641188]
[1773398289667,1.92097914,2127.7,2126.9,0.001]
[1773398289968,0.40896118,2127.6,2126.9,0.001]
[1773398290169,1.92097914,2127.7,2126.9,0.001]
[1773398290392,0.40857737,2127.6,2126.9,0.001]
[1773398290588,0.74600147,2127.6,2126.9,0.001]
[1773398291803,1.17497767,2127.7,2126.9,0.78998026]
[1773398291964,4.6999107,2127.8,2126.9,0.78998026]
[1773398292172,4.6999107,2127.8,2126.9,1.96539594]
[1773398292477,0.74600147,2127.7,2126.9,0.78998026]
[1773398292677,0.74600147,2127.7,2126.9,0.001]
[1773398293272,0.74600147,2127.5,2126.9,0.001]
[1773398294079,1.92114483,2127.4,2126.6,1e-08]
[1773398294331,0.74600147,2127.3,2126.3,0.11203843]
[1773398294614,0.74600147,2127.1,2126.3,0.11203843]
[1773398295114,0.74600147,2127.1,2126.1,0.001]
[1773398295873,0.74600147,2127.1,2126.1,1.17685899]
[1773398296121,0.74600147,2126.9,2126.1,0.001]
[1773398297996,4.70125545,2127.2,2126.1,0.001]
[1773398297997,1.92128039,2127.2,2126.4,1.17569601]
[1773398298386,0.74600147,2127.1,2126.4,1.17569601]
[1773398298910,0.74600147,2127.1,2126.3,1.17571232]
[1773398299084,0.74600147,2127.1,2126.1,1.17682009]
[1773398299408,0.74600147,2127.0,2126.1,1.17684297]
[1773398300181,0.74600147,2126.8,2126.1,0.001]
[1773398302317,0.74600147,2126.8,2126.3,0.001]
[1773398302318,5.44803006,2126.8,2126.3,0.001]
[1773398302500,0.002,2126.7,2126.3,0.001]
[1773398303920,0.57085121,2126.7,2126.3,0.001]
[1773398304926,1.74443665,2126.6,2126.3,0.001]
[1773398305095,0.56885121,2126.5,2125.9,1.17696088]
[1773398305300,0.56885121,2126.5,2125.9,0.001]
[1773398305522,0.56885121,2126.5,2125.9,1.17697233]
[1773398305719,0.56885121,2126.5,2125.9,1.17697187]
[1773398306119,0.56885121,2126.5,2125.9,0.001]
[1773398306495,0.56885121,2126.5,2125.9,1.17696893]
[1773398307119,1.74454722,2126.4,2125.9,0.001]
[1773398307319,0.56885121,2126.3,2125.9,0.001]
[1773398309107,0.56885121,2126.4,2125.9,0.001]
[1773398309721,0.56885121,2126.4,2125.6,1.1771385]
[1773398310122,0.56885121,2126.4,2125.5,0.001]
[1773398310123,0.56885121,2126.3,2125.5,0.001]
[1773398310300,0.56885121,2126.3,2125.5,1.17718475]
[1773398310656,0.56885121,2126.3,2125.1,1.27724033]
[1773398310657,0.56885121,2126.0,2125.1,1.27724033]
[1773398311540,0.56885121,2126.6,2125.1,1.27724033]
[1773398311740,0.56885121,2126.4,2125.1,1.27724033]
[1773398313719,0.56885121,2126.4,2125.1,1.17638122]
[1773398313919,0.002,2126.7,2125.1,1.17638122]
[1773398313920,1.74638461,2126.7,2125.1,1.17638122]
[1773398314130,0.56885121,2126.6,2125.1,6.12038122]
[1773398314421,0.56885121,2126.6,2125.1,6.45021953]
[1773398315137,0.56885121,2126.6,2125.3,0.001]
[1773398315727,0.56885121,2126.5,2125.3,0.001]
[1773398316121,1.74638236,2126.7,2125.3,0.001]
[1773398316320,0.97885043,2126.6,2125.3,0.001]
[1773398316557,0.40999922,2126.5,2125.3,0.001]
[1773398316854,0.56885121,2126.6,2125.3,0.001]
[1773398317029,0.40999922,2126.5,2125.3,0.001]
[1773398317233,1.74444451,2126.6,2125.3,0.001]
[1773398317432,0.41023622,2126.5,2125.3,0.001]
[1773398317631,0.56885121,2126.6,2125.3,0.001]
[1773398317844,0.41023622,2126.5,2125.3,0.001]
[1773398318045,0.56885121,2126.6,2125.3,0.001]
[1773398318350,0.41023622,2126.5,2125.3,0.001]
[1773398318549,0.56885121,2126.6,2125.3,0.001]
[1773398318856,0.41039975,2126.5,2125.3,0.001]
[1773398319039,0.56885121,2126.6,2125.3,0.001]
[1773398319215,0.002,2126.7,2125.3,0.001]
[1773398319415,0.002,2126.7,2125.4,0.14948499]
[1773398319832,0.002,2126.7,2125.5,0.00286257]
[1773398320632,0.56885121,2126.6,2125.5,0.00286257]
[1773398321463,0.56885121,2126.5,2125.5,0.00286257]
[1773398322051,0.57085121,2126.7,2125.5,0.00286257]
[1773398324336,0.002,2126.7,2125.6,0.00286257]
[1773398325585,0.002,2126.9,2126.0,0.00086257]
[1773398325883,0.50156871,2127.2,2126.2,0.00086257]
[1773398327081,0.002,2126.5,2126.2,0.00086257]
[1773398327394,0.002,2126.7,2126.2,0.00086257]
[1773398327597,0.002,2127.0,2126.3,0.00086257]
[1773398335774,0.002,2127.0,2126.2,1.1758066]
[1773398335775,0.50156871,2127.0,2126.2,1.1758066]
[1773398336497,0.50156871,2127.0,2126.2,1.17666917]
[1773398337599,0.50156871,2127.0,2126.2,0.00086257]
[1773398339874,0.50156871,2127.0,2126.4,0.001]
[1773398341107,0.002,2127.0,2126.5,0.00086257]
[1773398341286,0.50156871,2127.2,2126.5,0.00086257]
[1773398343245,0.31982995,2127.3,2126.5,0.00086257]
[1773398343536,0.50156871,2127.5,2126.6,0.00086257]
[1773398344120,0.50156871,2127.5,2126.4,1.17669601]
[1773398344121,0.47926087,2127.8,2126.5,0.49841752]
[1773398344323,0.47926087,2127.8,2126.7,0.49841752]
[1773398344935,0.47926087,2128.3,2126.7,0.49841752]
[1773398345512,0.47926087,2128.3,2126.6,1.17558544]
[1773398345513,0.47926087,2128.3,2126.9,0.49841752]
[1773398346410,1.65390793,2128.3,2127.1,0.49841752]
[1773398346609,0.47926087,2128.2,2127.1,0.49841752]
[1773398348705,0.47926087,2128.2,2127.3,0.49841752]
[1773398351540,0.47926087,2128.2,2127.5,0.49841752]
[1773398352209,0.47926087,2128.2,2127.4,1.17514336]
[1773398352533,0.47926087,2128.1,2127.4,1.17514336]
[1773398352839,0.47926087,2127.9,2127.4,1.17514336]
[1773398353541,0.47926087,2127.9,2127.1,4.70104693]
[1773398355511,0.47926087,2127.8,2127.1,4.70104693]
[1773398357563,0.47926087,2127.8,2126.9,5.19990689]
[1773398357739,0.47926087,2127.7,2126.9,5.19990689]
[1773398358257,0.47926087,2127.7,2127.0,0.49841752]
[1773398358849,0.47926087,2127.7,2126.9,4.70148937]
[1773398360137,0.47926087,2127.6,2126.9,4.70148937]
[1773398360669,0.47926087,2127.6,2126.9,5.19990689]
[1773398364167,0.47926087,2127.6,2127.0,0.49260076]
[1773398366268,0.47926087,2127.6,2127.1,1.1753091]
[1773398367468,0.47926087,2127.6,2127.2,0.001]
[1773398367838,0.48126087,2127.6,2127.2,0.001]
[1773398368146,0.48458246,2127.9,2127.4,1.66774412]
[1773398368470,0.002,2127.8,2127.4,1.66774412]
[1773398369139,0.002,2127.8,2127.5,0.49260076]
[1773398370166,0.002,2127.8,2127.4,1.17514336]
[1773398371666,0.48658246,2127.8,2127.4,1.17514336]
[1773398372746,0.48658246,2127.8,2127.2,0.001]
[1773398373071,0.48458246,2127.7,2127.0,1.17636042]
[1773398373258,0.48458246,2127.6,2127.0,1.17636042]
[1773398374679,0.48458246,2127.6,2127.0,0.001]
[1773398374882,0.48458246,2127.5,2127.0,0.001]
[1773398375784,0.002,2127.8,2127.0,0.49360076]
[1773398376555,0.002,2128.0,2127.1,0.49260076]
[1773398376860,0.002,2128.0,2127.3,0.49260076]
[1773398378767,0.002,2128.0,2127.5,0.49260076]
[1773398380086,0.48658246,2128.5,2127.5,0.49260076]
[1773398380960,0.48658246,2128.5,2127.7,0.49260076]
[1773398381569,0.002,2128.5,2127.7,0.49260076]
[1773398382267,0.002,2128.0,2127.7,0.49260076]
[1773398382465,0.002,2128.5,2127.7,0.49260076]
[1773398382785,0.002,2128.3,2127.7,0.49260076]
[1773398382985,0.002,2128.3,2127.8,1.17492245]
[1773398383186,0.002,2128.3,2127.8,1.66752321]
[1773398386583,0.002,2128.3,2127.9,0.47930795]
[1773398387698,0.002,2128.3,2127.8,1.17492245]
[1773398387870,0.46858383,2128.3,2127.8,1.17492245]
[1773398388601,0.46858383,2128.3,2127.8,1.6542304]
[1773398389295,0.002,2128.3,2127.9,0.47930795]
[1773398389495,0.002,2128.3,2127.8,1.17492245]
[1773398389496,0.46858383,2128.3,2127.8,1.17492245]
[1773398391900,0.46858383,2128.3,2127.4,5.17100779]
[1773398392075,0.49936055,2128.2,2127.5,1.17508813]
[1773398392712,0.49936055,2128.1,2127.5,1.17508813]
[1773398392901,0.49936055,2128.1,2127.4,1.17610998]
[1773398393287,0.49936055,2128.1,2127.4,1.64574125]
[1773398393981,0.49936055,2128.1,2127.5,0.46963127]
[1773398394377,0.50136055,2128.3,2127.7,0.46963127]
[1773398394703,0.002,2128.3,2127.7,0.46963127]
[1773398395007,0.002,2128.1,2128.0,0.001]
[1773398395210,0.002,2128.3,2128.0,0.001]
[1773398396607,0.002,2128.3,2128.0,0.47063127]
[1773398397109,1e-08,2128.5,2128.0,0.47063127]
[1773398397613,0.002,2128.6,2128.0,0.47063127]
[1773398398683,0.002,2128.6,2128.2,0.7334519]
[1773398400314,0.002,2128.6,2128.0,1.17580691]
[1773398400486,0.41053713,2128.5,2128.0,1.17580691]
[1773398400687,0.002,2128.6,2128.0,0.7344519]
[1773398403236,0.002,2128.6,2128.1,1.90820872]
[1773398403609,0.002,2128.6,2128.0,1.17576677]
[1773398403610,0.41083235,2128.5,2128.0,1.17576677]
[1773398403924,0.002,2128.6,2128.0,1.17576677]
[1773398404226,0.41083235,2128.5,2128.0,1.17580791]
[1773398404437,0.41083235,2128.4,2128.0,0.001]
[1773398404603,0.41083235,2128.3,2128.0,1.17581125]
[1773398404804,0.002,2128.6,2128.0,1.17581125]
[1773398405000,0.41115604,2128.5,2128.0,1.17581125]
[1773398405233,0.41115604,2128.4,2128.0,0.7344519]
[1773398405427,0.41115604,2128.3,2128.0,0.7344519]
[1773398405629,2.80910893,2128.6,2128.0,0.7344519]
[1773398405839,0.41160569,2128.5,2128.0,0.7344519]
[1773398406130,0.41160569,2128.4,2128.0,0.7344519]
[1773398406328,0.32044509,2128.3,2128.0,0.7344519]
[1773398406532,0.002,2128.6,2128.0,0.7344519]
[1773398409218,0.002,2128.6,2128.2,0.7334519]
[1773398410009,0.002,2128.4,2128.2,0.7334519]
[1773398410634,0.002,2128.4,2128.1,1.17575682]
[1773398411709,0.002,2128.4,2128.1,0.001]
[1773398413040,2.81430787,2128.4,2128.1,0.001]
[1773398413348,0.002,2128.4,2128.1,0.001]
[1773398414042,1.17464643,2128.3,2128.1,0.001]
[1773398415736,1.17464643,2128.3,2127.6,0.001]
[1773398415937,2.81195112,2128.2,2127.6,0.001]
[1773398416241,2.81195112,2128.2,2127.6,0.7344519]
[1773398417137,1.17662714,2128.4,2127.6,0.7344519]
[1773398417352,2.81047081,2128.3,2127.6,0.7344519]
[1773398417950,3.98515973,2128.3,2127.7,1.17497767]
[1773398418153,2.81047081,2128.2,2127.7,1.90842957]
[1773398418330,1.17465116,2128.3,2127.7,1.17497767]
[1773398418528,1.17465116,2128.3,2127.8,0.7334519]
[1773398418529,2.80993823,2128.2,2127.8,0.7334519]
[1773398418763,1.17465116,2128.3,2127.8,0.7334519]
[1773398418929,2.81002403,2128.2,2127.8,0.7334519]
[1773398419246,1.17464911,2128.3,2127.8,0.7334519]
[1773398419860,0.002,2128.4,2127.9,1.17486724]
[1773398420159,2.81163961,2128.4,2127.9,1.17486724]
[1773398421528,2.81163961,2128.4,2127.6,1.9094394]
[1773398421529,4.71932357,2128.4,2127.6,1.9094394]
[1773398421729,2.80963961,2128.3,2127.6,1.9094394]
[1773398422354,1.17470162,2128.2,2127.6,1.9094394]
[1773398422556,0.002,2128.4,2127.6,1.9094394]
[1773398422855,1.17663626,2128.4,2127.7,0.7334519]
[1773398423154,2.80933485,2128.3,2127.7,0.7334519]
[1773398424030,2.80933485,2128.3,2128.1,0.001]
[1773398424231,2.80933485,2128.3,2127.9,0.001]
[1773398424460,1.17470162,2128.2,2127.9,0.001]
[1773398426553,0.002,2128.4,2127.9,0.001]
[1773398428739,1.17659124,2128.4,2127.9,0.7344519]
[1773398430673,2.80974329,2128.3,2127.9,0.001]
[1773398430968,0.002,2128.4,2127.9,0.001]
[1773398431184,0.41164444,2128.3,2127.6,0.001]
[1773398431353,0.41164444,2128.2,2127.6,0.001]
[1773398431557,0.41164444,2128.1,2127.6,0.001]
[1773398431858,0.41164444,2128.0,2127.6,0.001]
[1773398432172,0.41164444,2127.9,2127.6,0.001]
[1773398432388,2.80991487,2128.3,2127.6,0.001]
[1773398432683,0.41168496,2128.2,2127.6,0.001]
[1773398432872,1.58644178,2128.1,2127.6,0.001]
[1773398433183,3.22159983,2128.0,2127.6,0.001]
[1773398433382,0.41168496,2127.9,2127.6,0.001]
[1773398433584,0.41168496,2127.8,2127.6,0.001]
[1773398433789,0.41168496,2127.7,2127.6,0.001]
[1773398434092,0.41168496,2127.7,2127.4,0.001]
[1773398434295,0.41168496,2127.6,2127.4,0.001]
[1773398434589,0.41168496,2127.5,2127.4,0.001]
[1773398434989,1.58677309,2127.5,2127.4,0.001]
[1773398435194,0.41168496,2127.5,2127.4,0.001]
[1773398438072,0.41168496,2127.5,2127.4,0.7344519]
[1773398438293,9.64326575,2128.0,2127.4,0.7344519]
[1773398438294,1.17486724,2127.9,2127.4,0.7344519]
[1773398438493,0.41121978,2127.8,2127.4,0.7344519]
[1773398438698,0.41121978,2127.7,2127.4,0.7344519]
[1773398438893,0.41121978,2127.6,2127.4,0.7344519]
[1773398439098,1.17486724,2127.9,2127.4,0.7344519]
[1773398439297,1.58615771,2127.8,2127.4,0.7344519]
[1773398439600,0.41121978,2127.7,2127.4,0.7344519]
[1773398439808,0.41121978,2127.6,2127.4,0.7344519]
[1773398440026,1.17493793,2127.8,2127.4,0.7344519]
[1773398440198,0.41125613,2127.7,2127.4,0.7344519]
[1773398440397,0.41125613,2127.6,2127.4,0.7344519]
[1773398440603,1.17493793,2127.8,2127.4,1.90959471]
[1773398440790,0.41131304,2127.7,2127.4,1.90959471]
[1773398441127,1.17483203,2128.0,2127.4,0.001]
[1773398441414,4.70107778,2128.1,2127.4,0.001]
[1773398441415,2.8086484,2127.9,2127.4,0.001]
[1773398441618,0.002,2128.1,2127.4,0.58776152]
[1773398441796,2.8106484,2128.1,2127.4,0.58776152]
[1773398444601,1.17486724,2127.9,2127.4,0.001]
[1773398444819,2.80939709,2127.8,2127.4,0.001]
[1773398445424,1.17485406,2128.0,2127.5,0.58676152]
[1773398445597,2.80945688,2127.9,2127.5,0.58676152]
[1773398445793,0.002,2128.1,2127.5,0.58676152]
[1773398446003,1.17676003,2128.1,2127.5,0.58676152]
[1773398446197,2.80896855,2128.0,2127.5,0.58676152]
[1773398446596,0.002,2128.1,2127.6,1.76179442]
[1773398448323,0.002,2128.1,2127.7,0.58676152]
[1773398448828,0.002,2128.1,2127.8,0.58676152]
[1773398449501,0.002,2128.1,2127.8,0.53976462]
[1773398450023,0.002,2128.0,2127.8,0.53976462]
[1773398451730,0.002,2128.0,2127.9,0.56326307]
[1773398453826,0.002,2128.1,2127.9,0.56226307]
[1773398455521,0.3334054,2128.8,2127.9,0.56226307]
[1773398455728,0.3334054,2128.8,2128.1,0.56226307]
[1773398456123,0.3334054,2128.8,2128.2,0.56226307]
[1773398456724,0.002,2128.9,2128.2,0.56226307]
[1773398458032,0.002,2128.9,2128.4,0.49075201]
[1773398458844,0.47948622,2129.5,2128.4,0.49075201]
[1773398459038,1.65347993,2129.5,2128.4,0.49075201]
[1773398459235,0.47948622,2129.5,2128.4,0.49075201]
[1773398459440,0.47748622,2129.4,2128.4,0.49075201]
[1773398460040,0.47748622,2129.2,2128.5,1.66528806]
[1773398460235,0.47748622,2129.2,2128.6,0.49075201]
[1773398460422,0.47748622,2129.3,2128.6,0.49075201]
[1773398460627,1.65347616,2129.5,2128.6,0.49075201]
[1773398460930,0.40935096,2129.4,2128.6,0.49075201]
[1773398461146,1.65347616,2129.5,2128.6,0.49075201]
[1773398461343,0.40891469,2129.4,2128.6,0.49075201]
[1773398461544,1.65347616,2129.5,2128.6,0.49075201]
[1773398461757,0.40886065,2129.4,2128.6,0.49075201]
[1773398461958,1.65347616,2129.5,2128.6,0.49075201]
[1773398462153,1.65347616,2129.5,2128.8,0.49075201]
[1773398464443,0.47748622,2129.4,2128.9,1.66506738]
[1773398464772,0.47748622,2129.4,2128.8,1.17432787]
[1773398465273,0.47748622,2129.4,2128.4,0.11858202]
[1773398465479,0.47748622,2129.4,2128.1,2.51334161]
[1773398465480,0.38389184,2128.5,2127.9,0.49075201]
[1773398465685,0.38389184,2129.1,2128.0,0.49075201]
[1773398465843,0.38389184,2129.1,2127.9,0.08020353]
[1773398465844,0.38389184,2128.9,2127.9,0.08020353]
[1773398466168,0.38389184,2128.7,2127.9,0.08020353]
[1773398466346,1.55848308,2128.4,2127.9,0.08020353]
[1773398467153,1.55848308,2128.4,2127.9,1.25506636]